Workbook

Sheet EAEPE_CA_DEP
B2: FISCALÍA ANTICORRUPCIÓN DEL ESTADO DE CHIHUAHUA
B3: Estado Analítico del Ejercicio del Presupuesto de Egresos
B4: Clasificación Administrativa
B5: Del 01 de Enero al 31 de Diciembre de 2021
B6: Concepto | C6: Egresos | H6: Subejercicio
C7: Aprobado | D7: Ampliaciones/ (Reducciones) | E7: Modificado | F7: Devengado | G7: Pagado
C8: 1 | D8: 2 | E8: 3 = (1+2) | F8: 4 | G8: 5 | H8: 6 = ( 3 - 4)
B10: 70600001 FISCALÍA ANTICORRUPCIÓN DEL ESTADO DE CHIHUAHUA | C10: 32979288.52 | D10: -3661441.63 | E10: =C10+D10 -> 29317846.89 | F10: 14806690.5 | G10: =1034485.97+775426.78 -> 1809912.75 | H10: =E10-F10 -> 14511156.39
B11: 70601001 OFICIN DEL VISEFISCAL DE INVESTIGACIÓN Y PROCESOS | C11: 8741101.23 | D11: 1297103.62 | E11: =C11+D11 -> 10038204.85 | F11: 7650979.63 | G11: 7496649.66 | H11: 2387225.22
B12: 70602001 OFICINA DEL C. DIRECTOR JURÍDICO Y DE EXTINCIÓN DE DOMINIO | C12: 1579576.35 | D12: 20137.41 | E12: 1599713.76 | F12: 1596313.76 | G12: 1480566.28 | H12: 3400
B13: 70603001 OFICINA DEL C. DIRECTOR DE INTELIGENCIA DELICTIVA, PATRIMONIAL, FINANCIERA Y FISCAL | C13: 2179086.33 | D13: 661124.9 | E13: =C13+D13 -> 2840211.23 | F13: 2842959.23 | G13: 2624714.49 | H13: -2748
B14: 70604001 OFICINA DEL C. DIRECTOR DE LA POLICÍA DE INVESTIGACIÓN | C14: 1719895.95 | D14: 529427.7 | E14: 2249323.65 | F14: 1069838.69 | G14: 943674.41 | H14: 1179484.96
B15: 70605001 OFICINA DEL C. DIRECTOR ADMINISTRATIVO | C15: 5837877.61 | D15: 145213.19 | E15: 5983090.8 | F15: 5248386.91 | G15: 4869713.46 | H15: 734703.89
B16: 70606001 VISITADURÍA GENERAL | C16: 1082863.46 | D16: 610422.8 | E16: 1693286.26 | F16: 1694786.26 | G16: 1617621.27 | H16: -1500
B17: 70607001 ÁREA COORDINADORA DE ARCHIVOS | C17: 443061.17 | D17: 216998.36 | E17: 660059.53 | F17: 663987.53 | G17: 625405.04 | H17: -3928
B18: 70608001 UNIDAD DE TRANSPARENCIA | C18: 300936.38 | D18: 181013.65 | E18: 481950.03 | F18: 480250.03 | G18: 441667.54 | H18: 1700
B20: Total del Gasto | C20: =SUM(C9:C19) -> 54863687 | D20: =SUM(D9:D19) -> -1.193257049e-09 | E20: =SUM(C20,D20) -> 54863687 | F20: =SUM(F9:F19) -> 36054192.54 | G20: =SUM(G9:G19) -> 21909924.9 | H20: =E20-F20 -> 18809494.46
